fUSD/lending_fUSD_20240612
["ID","MTS","AMOUNT","RATE_DAILY","PERIOD"]
[329283395,1718214644994,-200.0,0.00027,2]
[329283397,1718214645005,-1400.0,0.00027,2]
[329283399,1718214645016,-17804.38443806,0.00027,2]
[329283401,1718214645027,-2000.0,0.00027,2]
[329283403,1718214645037,-3612.863124,0.0002701,2]
[329283405,1718214645048,-800.0,0.00027041,2]
[329283407,1718214645060,-156.98375871,0.00027089,2]
[329283409,1718214645070,-500.0,0.00027103,2]
[329283411,1718214645081,-500.0,0.00027103,2]
[329283413,1718214645092,-500.0,0.00027103,2]
[329283415,1718214645102,-500.0,0.00027103,2]
[329283417,1718214645112,-500.0,0.00027103,2]
[329283419,1718214645122,-500.0,0.00027103,2]
[329283421,1718214645132,-500.0,0.00027103,2]
[329283422,1718214645142,-432.12,0.00027103,2]
[329283425,1718214645152,-500.0,0.00027103,2]
[329283426,1718214645163,-500.0,0.00027103,2]
[329283429,1718214645173,-500.0,0.00027103,2]
[329283431,1718214645183,-500.0,0.00027103,2]
[329283433,1718214645193,-500.0,0.00027103,2]
[329283435,1718214645203,-500.0,0.00027103,2]
[329283437,1718214645214,-471.28336082,0.00027103,2]
[329283438,1718214645224,-500.0,0.00027103,2]
[329283440,1718214645234,-500.0,0.00027103,2]
[329283442,1718214645245,-500.0,0.00027103,2]
[329283445,1718214645255,-500.0,0.00027103,2]
[329283447,1718214645266,-615.69,0.00027103,2]
[329283448,1718214645277,-500.0,0.00027103,2]
[329283451,1718214645287,-500.0,0.00027103,2]
[329283453,1718214645298,-160.96947633,0.00027116,2]
[329283455,1718214645310,-9584.90205119,0.00027173,2]
[329283457,1718214645323,-2013.69130441,0.000272,2]
[329283459,1718214645335,-263.1,0.0002724,2]
[329283461,1718214645346,-500.0,0.0002724,2]
[329283462,1718214645361,-500.0,0.0002724,2]
[329283465,1718214645374,-500.0,0.0002724,2]
[329283467,1718214645384,-500.0,0.0002724,2]
[329283469,1718214645395,-500.0,0.0002724,2]
[329283471,1718214645405,-500.0,0.0002724,2]
[329283472,1718214645416,-500.0,0.0002724,2]
[329283474,1718214645426,-623.87,0.0002724,2]
[329283476,1718214645438,-500.0,0.0002724,2]
[329283478,1718214645448,-500.0,0.0002724,2]
[329283480,1718214645459,-301.68247579,0.00027241,2]
[329283482,1718214645470,-150.20717074,0.00027283,2]
[329283484,1718214645481,-500.0,0.00027377,2]
[329283486,1718214645494,-500.0,0.00027377,2]
[329283488,1718214645504,-500.0,0.00027377,2]
[329283490,1718214645515,-500.0,0.00027377,2]
[329283492,1718214645526,-500.0,0.00027397,2]
[329283494,1718214645537,-489.71508461,0.00027397,2]
[329283496,1718214645548,-500.0,0.00027397,2]
[329283499,1718214645559,-500.0,0.00027397,2]
[329283500,1718214645570,-500.0,0.00027397,2]
[329283503,1718214645584,-391.3506514,0.00027397,2]
[329283505,1718214645595,-150.0,0.00027397,2]
[329283507,1718214645609,-162.12,0.00027397,2]
[329283509,1718214645622,-157.51000341,0.000274,2]
[329283511,1718214645632,-279.38,0.000274,2]
[329283513,1718214645643,-279.38,0.000274,2]
[329283515,1718214645656,-279.38,0.000274,2]
[329283517,1718214645666,-301.68247579,0.00027462,2]
[329283519,1718214645679,-150.0,0.0002747,2]
[329283521,1718214645690,-1856.807,0.0002747,2]
[329283523,1718214645700,-177.305,0.0002747,2]
[329283525,1718214645711,-2394.0,0.0002747,2]
[329283527,1718214645722,-157.0,0.0002747,2]
[329283529,1718214645733,-164.0,0.0002747,2]
[329283531,1718214645745,-1977.0,0.0002747,2]
[329283533,1718214645770,-3849.688,0.0002747,2]
[329283535,1718214645783,-234.291,0.0002747,2]
[329283537,1718214645794,-1477.4,0.0002747,2]
[329283539,1718214645805,-800.0,0.00027507,7]
[329283541,1718214645816,-500.0,0.00027514,2]
[329283543,1718214645827,-500.0,0.00027514,2]
[329283545,1718214645838,-500.0,0.00027514,2]
[329283547,1718214645849,-516.25246256,0.00027514,2]
[329283549,1718214645862,-154.63924011,0.00027538,2]
[329283551,1718214645873,-417.254,0.00027542,2]
[329283553,1718214645884,-2100.0,0.00027542,2]
[329283555,1718214645895,-500.0,0.00027651,2]
[329283557,1718214645905,-500.0,0.00027651,2]
[329283559,1718214645917,-336.828652,0.00027671,14]
[329283561,1718214645928,-154.63924011,0.00027681,2]
[329283563,1718214645939,-154.63924011,0.00027694,2]
[329283565,1718214645949,-7002.0,0.000277,5]
[329283567,1718214645959,-244.12,0.0002771,2]
[329283569,1718214645970,-1716.79702515,0.00027757,2]
[329283571,1718214645980,-500.0,0.00027788,2]
[329283573,1718214645991,-500.0,0.00027788,2]
[329283575,1718214646002,-153.44603738,0.00027818,2]
[329283577,1718214646015,-157.51000341,0.00027856,2]
[329283579,1718214646026,-266.2781261,0.000279,2]
[329283581,1718214646037,-500.0,0.000279,10]
[329283583,1718214646047,-500.0,0.00027925,2]
[329283585,1718214646058,-500.0,0.00027925,2]
[329283587,1718214646069,-301.68247579,0.00027928,2]
[329283589,1718214646079,-995.64,0.0002799,2]
[329283591,1718214646093,-224.98486477,0.00028,2]
[329283593,1718214646104,-177.87415085,0.00028,2]
[329283595,1718214646115,-469.26225557,0.00028,2]
[329283597,1718214646128,-228.01600877,0.00028,2]
[329283599,1718214646141,-363.06813015,0.00028,2]
[329283600,1718214646153,-363.06813015,0.00028,2]
[329283602,1718214646169,-363.06813015,0.00028,2]
[329283604,1718214646182,-363.06813015,0.00028,2]
[329283606,1718214646196,-363.06813015,0.00028,2]
[329283608,1718214646207,-363.06813015,0.00028,2]
[329283610,1718214646221,-363.06813015,0.00028,2]
[329283612,1718214646235,-363.06813015,0.00028,2]
[329283614,1718214646250,-363.06813015,0.00028,2]
[329283616,1718214646266,-363.06813015,0.00028,2]
[329283619,1718214646277,-363.06813015,0.00028,2]
[329283620,1718214646289,-363.06813015,0.00028,2]
[329283623,1718214646301,-363.06813015,0.00028,2]
[329283624,1718214646311,-363.06813015,0.00028,2]
[329283626,1718214646323,-363.06813015,0.00028,2]
[329283628,1718214646337,-363.06813015,0.00028,2]
[329283630,1718214646348,-363.06813015,0.00028,2]
[329283632,1718214646360,-363.06813015,0.00028,2]
[329283635,1718214646372,-363.06813015,0.00028,2]
[329283637,1718214646383,-363.06813015,0.00028,2]
[329283638,1718214646394,-363.06813015,0.00028,2]
[329283640,1718214646405,-363.06813015,0.00028,2]
[329283642,1718214646415,-363.06813015,0.00028,2]
[329283644,1718214646426,-363.06813015,0.00028,2]
[329283646,1718214646436,-363.06813015,0.00028,2]
[329283648,1718214646446,-363.06813015,0.00028,2]
[329283650,1718214646456,-363.06813015,0.00028,2]
[329283652,1718214646469,-363.06813015,0.00028,2]
[329283654,1718214646479,-363.06813015,0.00028,2]
[329283656,1718214646491,-363.06813015,0.00028,2]
[329283658,1718214646501,-363.06813015,0.00028,2]
[329283660,1718214646512,-345.05,0.00028011,2]
[329283662,1718214646524,-159.64313603,0.00028057,2]
[329283664,1718214646535,-500.0,0.00028062,2]
[329283666,1718214646545,-500.0,0.00028062,2]
[329283668,1718214646555,-301.68247579,0.00028094,2]
[329283670,1718214646568,-150.0,0.00028118,2]
[329283671,1718214646578,-500.0,0.00028199,2]
[329283673,1718214646589,-500.0,0.00028199,2]
[329283676,1718214646600,-5800.0,0.00028216,2]
[329283678,1718214646611,-5800.0,0.00028225,2]
[329283680,1718214646622,-156.00002068,0.00028225,2]
[329283682,1718214646633,-5800.0,0.00028233,2]
[329283684,1718214646644,-1417.09855751,0.00028233,2]
[329283686,1718214646658,-160.57937316,0.00028336,2]
[329283688,1718214646669,-172.0,0.00028336,2]
[329283690,1718214646681,-160.82059718,0.00028365,2]
[329283692,1718214646693,-301.68247579,0.00028422,2]
[329283694,1718214646704,-301.68247579,0.00028461,2]
[329283708,1718214646868,-301.68247579,0.00028469,2]
[329283710,1718214646879,-9584.90205119,0.00028536,2]
[329283712,1718214646891,-2501.13,0.00028578,2]
[329283714,1718214646902,-168.44763137,0.00028623,2]
[329283716,1718214646913,-156.98375871,0.00028717,2]
[329283718,1718214646923,-250.16489583,0.0002877,120]
[329283720,1718214646934,-500.0,0.0002877,15]
[329283722,1718214646945,-2501.13,0.00028776,2]
[329283724,1718214646956,-2732.63623953,0.000288,2]
[329283726,1718214646968,-301.68247579,0.0002881,2]
[329283728,1718214646979,-150.0,0.00028839,2]
[329283730,1718214646989,-301.68247579,0.00028898,2]
[329283732,1718214646999,-11201.36973749,0.00029,5]
[329283734,1718214647009,-1450.0,0.00029,2]
[329283736,1718214647021,-1489.8087426,0.00029,2]
[329283738,1718214647030,-714.70400096,0.00029,2]
[329283740,1718214647040,-4173.19345114,0.00029,2]
[329283742,1718214647052,-156.98375871,0.00029025,2]
[329283744,1718214647063,-218.27178887,0.00029086,2]
[329283746,1718214647075,-700.0,0.000291,10]
[329283748,1718214647085,-153.44603738,0.00029131,2]
[329283750,1718214647095,-1000.0,0.000292,10]
[329283752,1718214647106,-200.23,0.00029238,2]
[329283754,1718214647117,-1044.73139716,0.00029243,2]
[329283756,1718214647128,-155.0,0.00029243,2]
[329283758,1718214647139,-1968.0,0.000293,2]
[329283760,1718214647150,-1300.0,0.000293,10]
[329283762,1718214647161,-160.96947633,0.00029308,2]
[329283764,1718214647171,-859.3,0.0002931,30]
[329283766,1718214647183,-150.0,0.00029326,2]
[329283768,1718214647194,-159.64313603,0.00029398,2]
[329283770,1718214647205,-200.0,0.000294,10]
[329283772,1718214647217,-160.96947633,0.00029405,2]
[329283774,1718214647229,-663.0,0.00029413,2]
[329283776,1718214647241,-154.63924011,0.00029435,2]
[329283778,1718214647256,-1028.14,0.00029485,2]
[329283780,1718214647267,-226.92022958,0.000295,3]
[329283782,1718214647278,-200.0,0.000295,10]
[329283784,1718214647289,-156.98375871,0.00029517,2]
[329283786,1718214647299,-150.0,0.0002956,2]
[329283788,1718214647310,-156.98375871,0.00029595,2]
[329283790,1718214647321,-200.0,0.000296,10]
[329283792,1718214647331,-154.63924011,0.00029644,2]
[329283794,1718214647343,-154.82323248,0.00029656,2]
[329283796,1718214647356,-339.17922691,0.00029698,2]
[329283798,1718214647366,-506.40092381,0.00029699,2]
[329283800,1718214647377,-11671.0723041,0.00029699,2]
[329283802,1718214647389,-280.0,0.000297,2]
[329283804,1718214647401,-322.83869,0.000297,2]
[329283806,1718214647412,-200.0,0.000297,10]
[329283808,1718214647423,-663.0,0.00029716,2]
[329283810,1718214647433,-200.0,0.0002976,2]
[329283811,1718214647443,-1000.0,0.0002976,30]
[329283812,1718214647453,-500.0,0.0002976,2]
[329283813,1718214647464,-200.0,0.0002976,2]
[329283814,1718214647474,-1000.0,0.00029786,2]
[329283815,1718214647485,-174.23448122,0.00029799,2]
[329283816,1718214647495,-155.59546616,0.000298,2]
[329283817,1718214647505,-155.0,0.000298,2]
[329283818,1718214647516,-700.0,0.000298,10]
[329283819,1718214647527,-155.0,0.00029848,2]
[329283820,1718214647538,-150.0,0.00029867,2]
[329283821,1718214647548,-164.14976815,0.00029898,2]
[329283822,1718214647558,-4000.0,0.00029899,2]
[329283823,1718214647568,-2878.0327,0.00029899,2]
[329283824,1718214647577,-4000.0,0.00029899,2]
[329283826,1718214647588,-164.14976813,0.00029899,2]
[329283828,1718214647598,-4000.0,0.00029899,2]
[329283830,1718214647608,-1000.0,0.000299,2]
[329283832,1718214647618,-164.14976813,0.000299,2]
[329283834,1718214647630,-172.09388851,0.000299,2]
[329283836,1718214647642,-1716.79702515,0.000299,2]
[329283838,1718214647654,-9584.90205119,0.000299,2]
[329283840,1718214647666,-1417.09855751,0.000299,15]
[329283842,1718214647676,-395.71360566,0.000299,2]
[329283845,1718214647691,-263.42284993,0.000299,2]
[329283846,1718214647701,-156.98375871,0.00029924,2]
[329283848,1718214647711,-301.68247579,0.00029936,2]
[329283850,1718214647722,-301.68247579,0.00029964,2]
[329283851,1718214647736,-301.68247579,0.00029977,2]
[329283852,1718214647747,-503.0441348,0.0002999,2]
[329283853,1718214647771,-155.49037544,0.00029995,2]
[329283854,1718214647788,-5147.85965856,0.00029995,2]
[329283855,1718214647799,-155.00128118,0.00029997,2]
[329283856,1718214647811,-41182.87726848,0.00029997,2]
[329283857,1718214647821,-155.0,0.00029998,2]
[329283858,1718214647832,-1053.10914453,0.00029998,2]
[329283859,1718214647842,-334.23426842,0.00029998,2]
[329283860,1718214647852,-1219.2104629,0.00029998,2]
[329283861,1718214647862,-621.20003601,0.00029998,2]
[329283862,1718214647872,-1067.75598538,0.00029998,2]
[329283863,1718214647882,-216.99907853,0.00029998,2]
[329283864,1718214647892,-1981.57791662,0.00029998,2]
[329283865,1718214647910,-353094.42506282,0.00029998,2]
[329283866,1718214647921,-2057.12529549,0.00029998,2]
[329283868,1718214647932,-192.18649808,0.00029998,2]
[329283870,1718214647942,-1969.36805987,0.00029998,2]
[329283872,1718214647953,-264.30748211,0.00029998,2]
[329283873,1718214647964,-155.0,0.00029998,2]
[329283875,1718214647974,-155.2048654,0.00029998,2]
[329283877,1718214647985,-270.95520525,0.00029998,2]
[329283879,1718214647996,-282.76675085,0.00029998,2]
[329283881,1718214648007,-319.28728946,0.00029998,2]
[329283883,1718214648018,-156.74317224,0.00029998,2]
[329283885,1718214648032,-4760.50425002,0.00029998,2]
[329283887,1718214648043,-540.31525626,0.00029998,2]
[329283889,1718214648053,-269.83407313,0.00029998,2]
[329283892,1718214648064,-3099.09729572,0.00029998,2]
[329283894,1718214648077,-155.0,0.00029998,2]
[329283895,1718214648088,-489.1202774,0.00029998,2]
[329283897,1718214648099,-534.0306169,0.00029998,2]
[329283899,1718214648109,-155.0,0.00029998,2]
[329283901,1718214648119,-4441.68139867,0.00029998,2]
[329283903,1718214648130,-287.71365663,0.00029998,2]
[329283905,1718214648141,-634.94381214,0.00029998,2]
[329283907,1718214648151,-155.0,0.00029998,2]
[329283909,1718214648163,-5697.68244742,0.00029998,2]
[329283911,1718214648173,-178.3550662,0.00029998,2]
[329283913,1718214648184,-170.69238991,0.00029998,2]
[329283914,1718214648194,-407.24197213,0.00029998,2]
[329283916,1718214648204,-3893.9489826,0.00029998,2]
[329283918,1718214648215,-205.60285074,0.00029998,2]
[329283920,1718214648225,-155.0,0.00029998,2]
[329283922,1718214648235,-288.66023203,0.00029998,2]
[329283924,1718214648248,-155.0,0.00029998,2]
[329283926,1718214648259,-2309.56445021,0.00029998,2]
[329283928,1718214648270,-226689.67654259,0.00029998,2]
[329283930,1718214648280,-156.38728002,0.00029998,2]
[329283931,1718214648290,-113702.9527842,0.00029998,2]
[329283934,1718214648302,-155.3660043,0.00029998,4]
[329283936,1718214648313,-304.8252511,0.00029998,2]
[329283938,1718214648323,-281.31464469,0.00029998,2]
[329283940,1718214648333,-2199.22684884,0.00029998,2]
[329283941,1718214648344,-4000.0,0.00029999,2]
[329283943,1718214648355,-150.0,0.00029999,2]
[329283945,1718214648368,-150.0,0.00029999,2]
[329283947,1718214648380,-4590.16420873,0.00029999,2]
[329283949,1718214648392,-150.0,0.00029999,2]
[329283951,1718214648404,-229.54194228,0.0003,5]
[329283953,1718214648416,-105390.04651004,0.0003,13]
[329283965,1718214648532,-1942.86000001,0.0003,13]
[329283968,1718214648550,-363.06813015,0.00028,2]
[329283970,1718214648562,-439646.0073729,0.0003,13]
[329283982,1718214648692,-206.45,0.00027397,10]
[329283984,1718214648702,-1094.13267115,0.000274,2]
[329283987,1718214648727,-307.3,0.000274,2]
[329283994,1718214648804,-598.56732885,0.000274,2]
[329283996,1718214648821,-98.08970041,0.00028,2]
[329283999,1718214648835,-264.97842974,0.00028,2]
[329284001,1718214648846,-363.06813015,0.00028,2]
[329284003,1718214648858,-363.06813015,0.00028,2]
[329284005,1718214648869,-301.74623941,0.00028,2]
[329284007,1718214648883,-61.32189074,0.00028,2]
[329284009,1718214648895,-363.06813015,0.00028,2]
[329284011,1718214648906,-363.06813015,0.00028,2]
[329284013,1718214648916,-363.06813015,0.00028,2]
[329284015,1718214648927,-247.94507881,0.00028,2]
[329284018,1718214648941,-115.12305134,0.00028,2]
[329284020,1718214648953,-363.06813015,0.00028,2]
[329284021,1718214648963,-363.06813015,0.00028,2]
[329284023,1718214648974,-363.06813015,0.00028,2]
[329284025,1718214648984,-363.06813015,0.00028,2]
[329284027,1718214648995,-363.06813015,0.00028,2]
[329284029,1718214649005,-363.06813015,0.00028,2]
[329284031,1718214649016,-363.06813015,0.00028,2]
[329284033,1718214649027,-363.06813015,0.00028,2]
[329284035,1718214649038,-363.06813015,0.00028,2]
[329284037,1718214649048,-363.06813015,0.00028,2]
[329284039,1718214649059,-363.06813015,0.00028,2]
[329284041,1718214649069,-336.828652,0.00028493,14]
[329284042,1718214649080,-336.828652,0.00029315,14]
[329284044,1718214649092,-3870.18624551,0.0003,13]
[329284048,1718214649119,-33672.6013047,0.0003,13]
[329284049,1718214649133,-3755.125,0.0003,13]
[329284067,1718214649377,-644.16924096,0.0003,13]
[329284069,1718214649399,-831.48450349,0.0003,13]
[329284071,1718214649411,-7091.87739909,0.0003,13]
[329284083,1718214649553,-252.53116507,0.00019451,2]
[329284085,1718214649567,-538.86618151,0.00019451,2]
[329284087,1718214649581,-363.06813015,0.00028,2]
[329284089,1718214649594,-363.06813015,0.00028,2]
[329284091,1718214649605,-363.06813015,0.00028,2]
[329284092,1718214649615,-363.06813015,0.00028,2]
[329284095,1718214649627,-363.06813015,0.00028,2]
[329284096,1718214649638,-363.06813015,0.00028,2]
[329284098,1718214649651,-363.06813015,0.00028,2]
[329284100,1718214649665,-363.06813015,0.00028,2]
[329284102,1718214649675,-363.06813015,0.00028,2]
[329284104,1718214649686,-363.06813015,0.00028,2]
[329284105,1718214649697,-363.06813015,0.00028,2]
[329284107,1718214649708,-363.06813015,0.00028,2]
[329284109,1718214649718,-22733.67363962,0.0003,13]
[329284112,1718214649744,-2056.76758228,0.0003,13]
[329284113,1718214649757,-9183.69,0.0003,13]
[329284116,1718214649793,-363.06813015,0.00028,2]
[329284118,1718214649804,-512967.17912968,0.0003,13]
[329284120,1718214649817,-1049.27788698,0.0003,13]
[329284124,1718214649857,-363.06813015,0.00028,2]
[329284127,1718214649868,-24087.13735438,0.0003,13]
[329284134,1718214649951,-263.74921478,0.00019178,2]
[329284136,1718214649962,-305.09368844,0.00019178,2]
[329284138,1718214649973,-363.06813015,0.00028,2]
[329284140,1718214649984,-106.22282577,0.00028,2]
[329284142,1718214649997,-256.84530438,0.00028,2]
[329284144,1718214650008,-171.18567211,0.00028,2]
[329284315,1718214746311,160.0,0.00031847,30]
[329284316,1718215143777,1358.16690856,0.00031847,30]
[329284318,1718215405699,716.08,0.00024329,30]
[329284321,1718215645916,160.0,0.00031819,30]
[329284338,1718215834708,-797.0,0.00014979,2]
[329284339,1718215834719,-792.73133039,0.0001498,2]
[329284340,1718215834731,-3067.01080739,0.00014981,2]
[329284341,1718215834742,-536.37434974,0.00014987,2]
[329284342,1718215834757,-1927.38018579,0.00014989,2]
[329284343,1718215834768,-150.0,0.00017259,2]
[329284344,1718215834779,-300.0,0.00017259,2]
[329284345,1718215834791,-500.0,0.000185,2]
[329284346,1718215834803,-499.99,0.000185,2]
[329284347,1718215834814,-299.99,0.000185,4]
[329284348,1718215834826,-1000.0,0.00019178,2]
[329284349,1718215834839,-500.0,0.00019178,2]
[329284350,1718215834855,-500.0,0.00019178,2]
[329284351,1718215834874,-500.0,0.00019178,2]
[329284352,1718215834885,-500.0,0.00019178,2]
[329284353,1718215834898,-504.76356899,0.00019178,2]
[329284354,1718215834910,-500.0,0.00019178,2]
[329284355,1718215834921,-996.63902732,0.00019315,2]
[329284356,1718215834933,-501.09054886,0.00019315,2]
[329284357,1718215834945,-500.0,0.00019315,2]
[329284358,1718215834956,-500.0,0.00019315,2]
[329284359,1718215834969,-500.0,0.00019315,2]
[329284360,1718215834982,-592.83105758,0.00019315,2]
[329284361,1718215834993,-500.0,0.00019452,2]
[329284362,1718215835008,-500.0,0.00019452,2]
[329284363,1718215835022,-500.0,0.00019589,2]
[329284364,1718215835034,-500.0,0.00019589,2]
[329284365,1718215835056,-418.72,0.00019648,2]
[329284366,1718215835068,-500.0,0.00019726,2]
[329284367,1718215835079,-500.0,0.00019726,2]
[329284368,1718215835091,-500.0,0.00019863,2]
[329284369,1718215835105,-500.0,0.00019863,2]
[329284370,1718215835116,-385.01882893,0.0002,2]
[329284371,1718215835126,-500.0,0.0002,2]
[329284372,1718215835139,-501.38856683,0.0002,2]
[329284373,1718215835150,-226.74152349,0.000201,2]
[329284374,1718215835161,-500.0,0.00020136,2]
[329284375,1718215835182,-595.92,0.00020273,2]
[329284376,1718215835193,-1250.0,0.00021,2]
[329284377,1718215835204,-258.66,0.00021325,2]
[329284378,1718215835215,-250.0,0.00021336,2]
[329284379,1718215835226,-340.74,0.00021366,2]
[329284380,1718215835236,-250.0,0.0002145,2]
[329284381,1718215835248,-11485.29,0.00021537,2]
[329284382,1718215835259,-488.52,0.00021587,2]
[329284383,1718215835270,-500.0,0.000219,2]
[329284384,1718215835281,-418.72,0.00021912,2]
[329284385,1718215835292,-250.0,0.00021918,2]
[329284386,1718215835303,-8016.02,0.00022939,2]
[329284387,1718215835316,-1300.0,0.00023,2]
[329284388,1718215835330,-400.0,0.00023602,2]
[329284389,1718215835341,-398.46,0.0002386,2]
[329284390,1718215835354,-2343.49,0.00023937,2]
[329284391,1718215835364,-154.7981045,0.00024014,2]
[329284392,1718215835375,-232.45716845,0.00024032,2]
[329284393,1718215835386,-600.0,0.00024044,2]
[329284394,1718215835396,-4872.65,0.00024127,2]
[329284395,1718215835407,-160.38508069,0.00024173,2]
[329284396,1718215835418,-418.72,0.00024176,2]
[329284397,1718215835430,-333.7,0.00024215,2]
[329284398,1718215835441,-166.66666666,0.00024219,2]
[329284399,1718215835452,-180.0,0.0002423,2]
[329284400,1718215835463,-160.38508069,0.00024258,2]
[329284401,1718215835474,-232.45716845,0.00024272,2]
[329284402,1718215835484,-161.28706367,0.00024289,2]
[329284403,1718215835495,-154.7981045,0.00024303,2]
[329284404,1718215835506,-551.18,0.00024319,3]
[329284406,1718215835517,-500.0,0.00024328,2]
[329284408,1718215835528,-500.0,0.00024328,2]
[329284410,1718215835539,-500.0,0.00024328,2]
[329284412,1718215835550,-500.0,0.00024328,2]
[329284414,1718215835561,-500.0,0.00024328,2]
[329284416,1718215835572,-500.0,0.00024328,2]
[329284418,1718215835583,-500.0,0.00024328,2]
[329284420,1718215835595,-442.50277677,0.00024328,2]
[329284421,1718215835611,-609.08,0.00024328,2]
[329284422,1718215835622,-500.0,0.00024328,2]
[329284423,1718215835633,-573.1,0.00024328,2]
[329284424,1718215835643,-500.0,0.00024328,2]
[329284425,1718215835653,-500.0,0.00024328,2]
[329284426,1718215835666,-500.0,0.00024328,2]
[329284428,1718215835677,-500.0,0.00024328,2]
[329284430,1718215835689,-500.0,0.00024328,2]
[329284432,1718215835699,-500.0,0.00024328,2]
[329284434,1718215835710,-500.0,0.00024328,2]
[329284436,1718215835720,-500.0,0.00024328,2]
[329284438,1718215835732,-500.0,0.00024328,2]
[329284440,1718215835744,-500.0,0.00024328,2]
[329284442,1718215835756,-107025.2018918,0.00024329,2]
[329284445,1718215835785,-100500.14627493,0.00024329,2]
[329284447,1718215835801,-166.66666668,0.00024353,2]
[329284449,1718215835818,-265.56,0.00024384,2]
[329284451,1718215835836,-177.68,0.00024408,2]
[329284453,1718215835854,-154.28305795,0.00024426,2]
[329284455,1718215835869,-232.45716845,0.00024435,2]
[329284458,1718215835885,-500.0,0.00024465,2]
[329284460,1718215835898,-500.0,0.00024465,2]
[329284462,1718215835916,-239.01,0.00024465,2]
[329284463,1718215835932,-500.0,0.00024465,2]
[329284464,1718215835945,-174.47,0.00024465,2]
[329284465,1718215835956,-500.0,0.00024465,2]
[329284466,1718215835967,-349.0,0.00024465,2]
[329284467,1718215835977,-500.0,0.00024465,2]
[329284468,1718215835988,-566.46,0.00024465,2]
[329284469,1718215835999,-161.25760978,0.00024489,2]
[329284470,1718215836010,-154.28305795,0.0002449,2]
[329284471,1718215836021,-154.28305795,0.00024551,2]
[329284472,1718215836032,-482.55,0.00024602,2]
[329284473,1718215836044,-391.88267365,0.00024602,2]
[329284474,1718215836057,-500.0,0.00024602,2]
[329284475,1718215836072,-541.47,0.00024602,2]
[329284476,1718215836089,-500.0,0.00024602,2]
[329284477,1718215836101,-160.38508069,0.00024649,2]
[329284478,1718215836121,-161.28706367,0.00024719,2]
[329284479,1718215836133,-168.94,0.00024739,2]
[329284480,1718215836151,-500.0,0.00024739,2]
[329284481,1718215836162,-154.06645658,0.0002475,2]
[329284482,1718215836190,-9107.15496965,0.00024798,2]
[329284483,1718215836202,-2554.52847289,0.00024799,2]
[329284484,1718215836213,-160.38508069,0.00024837,2]
[329284485,1718215836226,-154.28305795,0.00024842,2]
[329284486,1718215836237,-1755.29912514,0.00024843,2]
[329284487,1718215836247,-2554.52847289,0.00024859,2]
[329284488,1718215836258,-500.0,0.00024876,2]
[329284489,1718215836269,-9107.15496963,0.0002488,2]
[329284490,1718215836279,-161.28706367,0.00024943,2]
[329284491,1718215836290,-159.73165692,0.00024944,2]
[329284492,1718215836301,-1780.75158721,0.00025,2]
[329284493,1718215836311,-1350.0,0.00025,2]
[329284494,1718215836322,-930.99721425,0.00025,2]
[329284495,1718215836334,-155.0,0.00025,2]
[329284496,1718215836346,-14477.41742419,0.00025,2]
[329284497,1718215836364,-2002.5,0.00025,2]
[329284498,1718215836374,-1277.7583517,0.00025,2]
[329284499,1718215836385,-225.34445904,0.00025,2]
[329284500,1718215836398,-307.18,0.00025,2]
[329284501,1718215836408,-159.1918364,0.00025,2]
[329284502,1718215836419,-326.33400151,0.00025,2]
[329284503,1718215836433,-155.0,0.00025,2]
[329284504,1718215836443,-706.94373209,0.00025009,2]